bitfinex/quotes_SOLUSD_20240906
["timestamp","ask_amount","ask_price","bid_price","bid_amount"]
[1725639526386,45.0,128.24,128.16,15.2705]
[1725639526583,39.3743763,128.28,128.16,15.2705]
[1725639526782,39.3743763,128.28,128.17,1.37493665]
[1725639526993,19.4909,128.27,128.16,15.2705]
[1725639527179,7.8003,128.2,128.16,15.2705]
[1725639527384,7.8015,128.18,128.16,15.2705]
[1725639527767,7.8008,128.2,128.16,15.2705]
[1725639528070,20.0,128.19,128.11,9.1809936]
[1725639528282,1.95035772,128.23,128.11,9.1809936]
[1725639528283,21.95052752,128.23,128.11,9.1809936]
[1725639528485,19.4998,128.21,128.1,1.37607328]
[1725639528689,7.8027,128.16,128.1,1.37607328]
[1725639528875,7.8021,128.17,128.11,1.37656786]
[1725639529185,45.0,128.2,128.11,9.1819448]
[1725639529386,20.0,128.19,128.11,9.1819448]
[1725639529697,7.8015,128.18,128.11,9.1819448]
[1725639529880,27.8025,128.17,128.11,1.3762448]
[1725639530079,7.8016,128.18,128.12,7.805]
[1725639530285,20.0,128.17,128.12,7.805]
[1725639530477,20.0,128.17,128.12,9.18074528]
[1725639530879,7.8027,128.16,128.1,9.18174136]
[1725639531074,27.8025,128.17,128.11,1.37646852]
[1725639531894,20.0,128.17,128.11,20.88936852]
[1725639532078,19.4978,128.22,128.11,20.88936852]
[1725639532079,20.0,128.21,128.11,20.88936852]
[1725639532612,7.8015,128.18,128.12,7.8051]
[1725639532793,7.8015,128.18,128.13,1.37552755]
[1725639533296,7.8008,128.2,128.13,54.18002755]
[1725639533674,27.8009,128.19,128.13,54.18002755]
[1725639533877,7.8,128.21,128.15,7.8032]
[1725639534214,0.3962763,128.28,128.17,19.505]
[1725639534503,7.7973,128.25,128.19,7.8008]
[1725639534702,7.7979,128.24,128.18,9.17421819]
[1725639534903,7.7979,128.24,128.17,19.505]
[1725639534904,19.8859763,128.28,128.17,19.505]
[1725639535208,7.8008,128.2,128.14,27.3128]
[1725639535497,7.799,128.23,128.16,7.8026]
[1725639535705,7.7997,128.21,128.14,28.68716769]
[1725639535884,2.34634283,128.28,128.16,19.5057]
[1725639536080,7.7985,128.23,128.17,46.37419106]
[1725639536506,7.7991,128.22,128.17,52.8021]
[1725639536805,7.7991,128.22,128.17,45.0]
[1725639537204,7.7986,128.23,128.17,52.8019]
[1725639537402,20.0,128.22,128.18,7.8014]
[1725639537704,0.3962763,128.28,128.19,27.3024]
[1725639537705,7.798,128.24,128.19,27.3024]
[1725639538008,2.34566004,128.28,128.13,53.10226741]
[1725639538186,7.8003,128.2,128.14,9.17897208]
[1725639538376,7.802,128.18,128.12,27.3171]
[1725639538582,19.4991,128.22,128.12,28.69284606]
[1725639538891,58.4804,128.25,128.14,7.8038]
[1725639539196,58.4804,128.25,128.15,9.17771203]
[1725639539197,7.7998,128.21,128.15,9.17771203]
[1725639539404,7.7998,128.21,128.16,7.8026]
[1725639539911,7.8027,128.17,128.11,27.3196]
[1725639540088,38.9868,128.25,128.09,22.1384]
[1725639540089,20.0,128.16,128.09,22.1384]
[1725639540408,7.8021,128.18,128.1,20.8911677]
[1725639540581,19.5002,128.21,128.1,20.8911677]
[1725639540582,7.8038,128.15,128.1,19.5146]
[1725639540782,7.8017,128.18,128.12,7.8048]
[1725639540988,20.0,128.17,128.11,19.5135]
[1725639541185,7.8022,128.17,128.11,20.88956706]
[1725639541404,1.9505118,128.23,128.11,20.88953912]
[1725639541405,7.8031,128.16,128.11,20.88953912]
[1725639541708,19.5002,128.21,128.12,7.805]
[1725639541916,6.359,128.27,128.13,1.37534102]
[1725639542083,7.7985,128.23,128.18,7.8014]
[1725639542282,7.7979,128.24,128.17,19.5043]
[1725639542484,7.7979,128.24,128.19,7.8007]
[1725639542785,7.7965,128.27,128.2,45.0]
[1725639543110,7.7973,128.25,128.2,1.37245732]
[1725639543288,41.32372249,128.28,128.16,19.5063]
[1725639543481,41.32372249,128.28,128.09,111.1726]
[1725639543482,19.4987,128.22,128.09,111.1726]
[1725639543708,7.8022,128.17,128.12,7.8048]
[1725639543893,1.95016173,128.27,128.09,22.1384]
[1725639544098,7.8056,128.12,128.09,15.7821]
[1725639544296,7.8039,128.15,128.09,15.7821]
[1725639544504,7.8045,128.13,128.09,15.7821]
[1725639544700,7.804,128.14,128.09,15.7821]
[1725639545005,7.8041,128.14,128.09,17.15971458]
[1725639545180,7.8041,128.14,128.09,15.7821]
[1725639545384,7.8044,128.14,128.09,15.7821]
[1725639545691,7.8052,128.12,128.09,15.7821]
[1725639546003,27.8046,128.13,128.09,15.7821]
[1725639546189,7.8062,128.11,128.09,15.7821]
[1725639546408,7.8065,128.1,128.05,7.8093]
[1725639546578,20.0,128.13,128.06,7.8086]
[1725639546780,1.95169662,128.19,128.08,7.8074]
[1725639546781,7.8043,128.14,128.08,7.8074]
[1725639546979,27.8048,128.13,128.08,1.37763012]
[1725639547207,7.8039,128.14,128.09,7.8068]
[1725639547416,1.95116308,128.23,128.04,92.15156741]
[1725639547417,19.498,128.22,128.1,20.89204765]
[1725639547707,1.95062809,128.21,128.1,27.3211]
[1725639548015,7.8024,128.17,128.1,19.5148]
[1725639548180,7.8022,128.17,128.12,7.8051]
[1725639548389,45.4456,128.24,128.12,19.5119]
[1725639548684,45.4456,128.24,128.09,19.517]
[1725639548685,19.5035,128.19,128.09,19.517]
[1725639549007,7.8053,128.12,128.06,7.8087]
[1725639549218,21.457639,128.17,128.07,7.808]
[1725639549387,7.8047,128.13,128.08,7.8073]
[1725639549582,20.0,128.18,128.1,7.8058]
[1725639549806,21.95108232,128.18,128.08,19.518]
[1725639550010,7.805,128.13,128.08,19.518]
[1725639550317,7.807,128.09,128.05,19.523]
[1725639550607,7.807,128.09,128.04,7.81]
[1725639550785,19.511,128.14,128.06,7.8086]
[1725639550985,19.511,128.14,128.05,7.8088]
[1725639550986,1.95142607,128.14,128.05,7.8088]
[1725639551210,7.8068,128.1,128.05,7.8088]
[1725639551419,7.8057,128.12,128.06,7.8085]
[1725639551586,27.806,128.11,128.06,7.8087]
[1725639551905,20.0,128.11,128.06,19.521]
[1725639552099,1.9514315,128.19,128.08,19.5183]
[1725639552302,19.4998,128.21,128.09,46.37692221]
[1725639552500,7.8014,128.19,128.12,19.5119]
[1725639552687,58.4855,128.24,128.09,46.37692221]
[1725639552688,19.4953,128.24,128.14,19.509]
[1725639552887,7.8013,128.19,128.14,19.509]
[1725639553111,2.86608851,128.26,128.1,53.10226741]
[1725639553292,21.83626832,128.28,128.18,7.8013]
[1725639554509,7.7987,128.23,128.18,7.8013]
[1725639554709,19.8862763,128.28,128.18,20.87703206]
[1725639554883,0.3962763,128.28,128.18,54.47649947]
[1725639555211,0.3962763,128.28,128.2,19.4998]
[1725639555912,7.7986,128.23,128.17,19.5049]
[1725639556078,0.3962763,128.28,128.17,19.5049]
[1725639556079,7.7991,128.22,128.17,19.5049]
[1725639556494,0.3962763,128.28,128.19,7.8009]
[1725639557107,7.7973,128.25,128.19,7.8009]
[1725639557294,7.7967,128.26,128.19,1.37379452]
[1725639557496,0.3962763,128.28,128.19,1.37379452]
[1725639557497,7.7978,128.25,128.19,27.3018]
[1725639557714,0.3962763,128.28,128.16,19.5063]
[1725639557715,21.83517756,128.28,128.16,19.5063]
[1725639557916,21.83517756,128.28,128.17,45.0]
[1725639558108,7.7986,128.23,128.17,52.8016]
[1725639558304,19.8857763,128.28,128.18,20.87680236]
[1725639558505,7.7974,128.25,128.2,7.7998]
[1725639558816,7.798,128.24,128.19,7.8008]
[1725639559024,7.7973,128.25,128.2,7.8001]
[1725639559224,19.8857763,128.28,128.18,20.87590875]
[1725639559518,19.8857763,128.28,128.16,53.10226741]
[1725639559519,19.8857763,128.28,128.17,7.8018]
[1725639559724,19.8857763,128.28,128.18,1.37459652]
[1725639559904,7.7966,128.26,128.18,73.98066393]
[1725639560094,0.3962763,128.28,128.22,19.4968]
[1725639560296,0.3962763,128.28,128.23,1.37214753]
[1725639560489,0.3962763,128.28,128.24,1.37167739]
[1725639560694,0.3962763,128.28,128.25,7.7972]
[1725639560919,0.3962763,128.28,128.26,20.86210146]
[1725639561099,0.3962763,128.28,128.26,27.2871]
[1725639561418,0.3962763,128.28,128.26,7.7961]
[1725639561620,0.3962763,128.28,128.25,35.3199]
[1725639562006,0.3962763,128.28,128.25,36.69118087]
[1725639562208,7.7929,128.33,128.25,35.3199]
[1725639562419,19.4706,128.4,128.28,72.59056741]
[1725639562656,7.7888,128.39,128.33,7.7918]
[1725639562921,1.0231022,128.44,128.29,47.2808]
[1725639562922,38.9381,128.41,128.29,47.2808]
[1725639563128,7.7912,128.35,128.3,7.794]
[1725639563301,7.7918,128.34,128.28,7.7949]
[1725639563504,19.4677,128.42,128.3,19.4844]
[1725639563701,7.7905,128.37,128.31,1.36876149]
[1725639563895,7.7905,128.37,128.31,46.36876149]
[1725639564116,7.7905,128.37,128.32,1.36893709]
[1725639564334,19.4677,128.42,128.34,7.7915]
[1725639564335,7.7888,128.39,128.34,7.7915]
[1725639564623,7.7881,128.41,128.35,70.58520263]
[1725639564839,1.0231022,128.44,128.35,16.4265]
[1725639565205,7.7888,128.39,128.35,16.4265]
[1725639565530,21.41412213,128.43,128.35,16.4265]
[1725639565727,39.9532022,128.44,128.31,19.4839]
[1725639565728,7.79,128.37,128.31,19.4839]
[1725639565906,19.4701,128.41,128.32,7.7929]
[1725639566104,7.7893,128.38,128.32,7.793]
[1725639566311,7.7893,128.38,128.32,9.16137976]
[1725639566633,19.4701,128.41,128.29,22.2656]
[1725639566634,20.0,128.37,128.29,22.2656]
[1725639566925,7.7924,128.33,128.29,22.2656]
[1725639567134,21.42146496,128.38,128.29,30.0603]
[1725639567304,7.7912,128.35,128.29,22.2656]
[1725639567501,21.94772365,128.37,128.29,15.6084]
[1725639567722,7.793,128.33,128.29,15.6084]
[1725639567934,20.0,128.32,128.29,15.6084]
[1725639568128,7.7917,128.35,128.29,15.6084]
[1725639568308,20.0,128.34,128.29,24.77248754]
[1725639568630,20.0,128.37,128.29,23.403]
[1725639568631,7.7917,128.35,128.29,23.403]
[1725639568834,20.0,128.34,128.29,23.403]
[1725639569007,7.7932,128.32,128.29,15.6084]
[1725639569334,20.0,128.34,128.29,23.4031]
[1725639569530,7.7905,128.37,128.32,7.7929]
[1725639569711,20.0,128.36,128.29,35.0941]
[1725639569915,1.94784075,128.38,128.29,15.6084]
[1725639570227,7.7937,128.31,128.25,19.4918]
[1725639570429,1.94784075,128.38,128.24,22.2832]
[1725639570430,1.94850802,128.36,128.24,22.2832]
[1725639570609,2.86919395,128.38,128.24,16.2579]
[1725639570610,1.94861316,128.35,128.24,16.2579]
[1725639570806,19.4872,128.29,128.2,7.8]
[1725639571028,7.7968,128.26,128.2,19.4994]
[1725639571329,20.0,128.25,128.19,6.2456]
[1725639571711,7.8009,128.19,128.18,16.2579]
[1725639572028,7.8004,128.2,128.14,33.4995]
[1725639572403,7.8014,128.19,128.14,6.1859]
[1725639572634,7.8003,128.2,128.14,6.1859]
[1725639572949,21.44484468,128.24,128.14,25.6955]
[1725639573104,7.8008,128.2,128.14,25.6955]
[1725639573306,7.8011,128.19,128.14,25.6955]
[1725639573505,7.8011,128.19,128.13,24.306842]
[1725639573506,66.95035036,128.23,128.13,15.1273]
[1725639573742,66.95035036,128.23,128.09,6.3347]
[1725639573743,20.0,128.18,128.09,14.1411]
[1725639573906,7.8033,128.16,128.09,14.1416]
[1725639574113,7.8033,128.16,128.07,35.3056]
[1725639574114,20.0,128.15,128.07,15.7864]
[1725639574443,7.8058,128.11,128.07,15.7864]
[1725639574934,45.0,128.14,128.07,15.7864]
[1725639575242,19.507,128.16,128.07,15.7864]
[1725639575243,7.8058,128.11,128.07,15.7864]
[1725639576307,20.0,128.13,128.07,15.7864]
[1725639576527,7.8064,128.1,128.07,15.7864]
[1725639576740,39.5111,128.14,128.07,15.7864]
[1725639576922,7.8065,128.1,128.07,15.7864]
[1725639577108,7.8075,128.09,128.03,14.4268]
[1725639577311,7.8064,128.1,128.04,1.37955422]
[1725639577525,39.5111,128.14,128.05,20.90153258]
[1725639577526,27.8045,128.14,128.05,20.90153258]
[1725639577923,7.8045,128.13,128.07,7.8079]
[1725639578125,20.0,128.12,128.07,9.18556729]
[1725639578729,7.807,128.09,128.03,14.4267]
[1725639578907,7.8064,128.1,128.03,15.80504809]
[1725639579109,7.8058,128.11,128.03,6.6162]
[1725639579315,42.37631937,128.19,128.05,19.5235]
[1725639579543,7.8033,128.16,128.09,7.8065]
[1725639579841,7.8033,128.16,128.1,7.8063]
[1725639580333,22.4249105,128.22,128.11,7.8056]
[1725639580535,1.95085939,128.21,128.09,20.89289036]
[1725639580750,19.5024,128.19,128.06,19.5219]
[1725639580945,19.5024,128.19,128.03,301.1684]
[1725639580946,19.5067,128.17,128.04,9.18834458]
[1725639581232,7.8052,128.12,128.06,7.8083]
[1725639581439,7.8051,128.13,128.07,7.8081]
[1725639581614,39.0025,128.2,128.09,7.8069]
[1725639581615,20.0,128.12,128.09,7.8069]
[1725639581815,20.0,128.12,128.07,27.3282]
[1725639582131,27.8048,128.13,128.07,27.3282]
[1725639582345,27.8048,128.13,128.07,19.5204]
[1725639582346,7.8053,128.12,128.07,19.5204]
[1725639582517,7.8064,128.1,128.04,28.71354053]
[1725639582718,7.8071,128.09,128.04,19.525]
[1725639582915,7.8064,128.1,128.04,27.335]
[1725639583117,20.0,128.09,128.04,27.335]
[1725639583319,7.8057,128.12,128.05,7.8092]
[1725639583539,27.8057,128.11,128.05,7.8092]
[1725639583837,7.8067,128.1,128.04,27.335]
[1725639584140,27.8058,128.11,128.05,9.18844925]
[1725639584638,27.8058,128.11,128.05,7.8093]
[1725639584842,1.9516344,128.1,128.03,6.6162]
[1725639585019,46.9516344,128.1,128.03,6.6162]
[1725639585216,20.0,128.09,128.03,6.6162]
[1725639585415,7.8083,128.07,128.03,6.6162]
[1725639585830,7.8064,128.1,128.04,7.8094]
[1725639586011,20.0,128.09,128.04,7.8094]
[1725639586212,7.8064,128.1,128.05,1.37897043]
[1725639586516,7.807,128.09,128.04,1.37869844]
[1725639586713,7.807,128.09,128.03,35.33123698]
[1725639587033,20.0,128.11,128.01,16.3788]
[1725639587336,20.0,128.08,128.02,7.8111]
[1725639587667,20.0,128.11,128.05,19.5235]
[1725639587822,20.0,128.15,128.05,19.5235]
[1725639588020,45.0,128.14,128.05,19.5235]
[1725639588219,20.0,128.13,128.03,1.37868676]
[1725639588422,20.0,128.13,128.01,24.1904]
[1725639588423,7.8083,128.07,128.01,24.1904]
[1725639588614,1.95195646,128.12,128.01,24.1904]
[1725639588820,7.8094,128.05,128.01,16.3788]
[1725639589131,19.5159,128.11,128.01,16.3788]
[1725639589333,7.8093,128.06,128.01,16.3788]
[1725639589642,27.8094,128.05,128.01,16.3788]
[1725639590257,27.8094,128.05,127.99,33.9927]
[1725639590258,20.0,128.05,127.99,6.6472]
[1725639590541,7.812,128.01,127.96,16.5484]
[1725639590923,19.5247,128.05,127.97,7.8141]
[1725639591126,7.8118,128.01,127.96,24.3632]
[1725639591438,7.8131,127.99,127.96,16.5484]
[1725639591622,21.9529572,128.04,127.96,16.5484]
[1725639591623,21.4804572,128.03,127.96,16.5484]
[1725639591822,21.4804572,128.03,127.94,6.865718]
[1725639591823,45.0,128.02,127.94,0.724218]
[1725639592023,7.8138,127.98,127.94,0.724218]
[1725639592820,39.5308,128.01,127.94,0.724218]
[1725639593020,7.8155,127.95,127.94,0.724218]
[1725639593225,7.8174,127.92,127.86,43.4078]
[1725639593746,7.8182,127.91,127.86,35.5873]
[1725639594152,7.8186,127.9,127.86,16.0354]
[1725639594339,41.02886627,127.97,127.81,8.6613814]
[1725639594340,42.03926874,127.97,127.81,8.6613814]
[1725639594538,7.8193,127.89,127.84,7.8221]
[1725639595040,7.8198,127.88,127.83,7.8228]
[1725639595645,7.8193,127.89,127.83,7.8228]
[1725639596153,7.8199,127.88,127.83,7.8228]
[1725639596842,7.819,127.9,127.84,9.20843953]
[1725639597036,20.0,127.89,127.84,9.20843953]
[1725639597241,20.0,127.89,127.84,7.8217]
[1725639597457,7.819,127.9,127.85,7.8215]
[1725639597771,1.9543689,127.99,127.88,19.5484]
[1725639598066,39.0627,128.0,127.86,45.0]
[1725639598067,7.8174,127.92,127.87,7.8204]
[1725639598234,7.8169,127.93,127.88,7.8197]
[1725639598641,7.8159,127.95,127.89,7.8186]
[1725639598843,19.538,127.96,127.87,19.5503]
[1725639599041,1.95452861,127.95,127.84,19.5549]
[1725639599242,19.538,127.96,127.85,45.0]
[1725639599243,21.49252861,127.96,127.85,45.0]
[1725639599437,1.95463025,127.95,127.84,19.5549]
[1725639599646,1.95463025,127.95,127.85,45.0]
[1725639599849,20.0,127.95,127.85,45.0]
[1725639600056,45.0,127.94,127.85,45.0]
[1725639600258,19.538,127.96,127.86,20.93775684]
[1725639600465,39.0533,128.03,127.9,16.5103]
[1725639600765,39.0655,128.0,127.87,52.8199]
[1725639601057,39.0655,128.0,127.89,7.8192]
[1725639601058,7.8166,127.94,127.89,7.8192]
[1725639601261,7.8169,127.93,127.88,7.8196]
[1725639601467,19.5379,127.96,127.86,19.5517]
[1725639601664,1.95443578,127.95,127.86,19.5517]
[1725639601845,20.0,127.95,127.85,17.89671648]
[1725639602050,58.5977,128.0,127.89,19.5473]
[1725639602261,19.5322,128.0,127.89,20.9319815]
[1725639602465,19.5322,128.0,127.86,53.10226741]
[1725639602466,7.8125,128.0,127.95,7.815]
[1725639602651,7.8125,128.0,127.9,61.02050998]
[1725639602652,1.95331792,128.02,127.9,6.5344]
[1725639602962,19.5259,128.04,127.91,1.38336685]
[1725639602963,1.95355338,128.04,127.91,1.38336685]
[1725639603162,1.95322769,128.08,127.96,34.642]
[1725639603349,19.5227,128.06,127.96,34.642]
[1725639603546,1.95311975,128.05,127.96,15.1058]
[1725639603774,7.8144,127.97,127.93,19.541]
[1725639603962,39.0436,128.07,127.91,60.1058]
[1725639603963,1.95364389,128.06,127.91,61.48885022]
[1725639604259,1.95364389,128.06,127.93,7.8166]
[1725639604260,19.5276,128.03,127.93,7.8166]
[1725639604572,19.5305,128.01,127.92,19.5429]
[1725639604741,20.0,128.0,127.92,19.5429]
[1725639604939,19.5256,128.04,127.94,19.5398]
[1725639605251,19.5291,128.02,127.91,61.48777183]
[1725639605454,19.5321,128.0,127.91,15.1058]
[1725639605639,1.9542776,127.99,127.86,16.467]
[1725639605840,21.48985622,127.98,127.87,19.5503]
[1725639606041,21.48985622,127.98,127.86,16.467]
[1725639606042,1.95425622,127.98,127.86,16.467]
[1725639606263,19.5413,127.94,127.86,16.467]
[1725639606446,10.0,128.0,127.8,53.10226741]
[1725639606447,7.8199,127.88,127.83,7.8227]
[1725639606651,1.9549993,127.91,127.81,16.1428814]
[1725639606856,7.821,127.86,127.81,23.9668814]
[1725639607065,1.95520742,127.9,127.81,23.9668814]
[1725639607272,19.548,127.89,127.81,23.9668814]
[1725639607450,7.8212,127.86,127.81,16.1428814]
[1725639607641,20.0,127.85,127.81,16.1428814]
[1725639607975,7.8198,127.88,127.82,9.21156522]
[1725639608146,45.0,127.91,127.83,7.8228]
[1725639608147,20.0,127.87,127.83,7.8228]
[1725639608546,1.95498562,127.94,127.81,16.1428814]
[1725639608547,1.95498562,127.94,127.84,7.8222]
[1725639608743,19.5377,127.96,127.85,1.38631242]
[1725639609063,7.8173,127.92,127.86,7.821]
[1725639609570,19.5377,127.96,127.84,19.5545]
[1725639609571,1.9545569,127.95,127.84,19.5545]
[1725639609738,7.8186,127.9,127.84,27.3766]
[1725639610078,20.0,127.89,127.84,19.5545]
[1725639610372,20.0,127.89,127.82,1.38655203]
[1725639610583,7.8199,127.88,127.82,9.20945203]
[1725639610752,21.95492179,127.93,127.81,35.7028814]
[1725639610753,20.0,127.87,127.81,35.7028814]
[1725639610956,20.0,127.87,127.81,16.1428814]
[1725639611273,7.8216,127.85,127.81,16.1428814]
[1725639611471,7.823,127.83,127.81,0.8373814]
[1725639611777,27.8235,127.82,127.81,0.8373814]
[1725639612280,7.8272,127.76,127.71,23.517]
[1725639612456,7.8252,127.8,127.74,7.8283]
[1725639612770,26.1868,127.87,127.75,20.95847676]
[1725639613074,26.1868,127.87,127.72,53.10226741]
[1725639613075,7.8221,127.85,127.79,7.8252]
[1725639613264,20.0,127.84,127.79,27.3868]
[1725639613576,20.0,127.84,127.8,7.8244]
[1725639613874,1.95548376,127.92,127.83,7.8228]
[1725639614051,7.8192,127.89,127.84,7.8222]
[1725639614251,7.8192,127.89,127.81,19.559]
[1725639614489,19.5458,127.91,127.81,19.559]
[1725639614672,7.8211,127.86,127.81,19.559]
[1725639614855,21.50112342,127.91,127.81,19.559]
[1725639615174,20.0,127.9,127.81,19.559]
[1725639615670,7.821,127.87,127.82,7.8232]
[1725639615877,20.0,127.86,127.81,19.559]
[1725639616056,20.0,127.9,127.82,45.0]
[1725639616257,20.0,127.9,127.81,20.94613086]
[1725639616464,21.9549695,127.93,127.82,7.8233]
[1725639616659,39.0928,127.91,127.79,6.1337]
[1725639616857,7.8205,127.87,127.82,7.8233]
[1725639617058,20.0,127.86,127.82,7.8233]
[1725639617270,20.0,127.86,127.81,7.824]
[1725639617475,27.821,127.86,127.81,7.824]
[1725639618159,7.8228,127.84,127.79,19.5623]
[1725639618357,20.0,127.83,127.8,7.8241]
[1725639618555,7.8217,127.85,127.8,7.8241]
[1725639618865,20.0,127.84,127.8,7.8241]
[1725639619193,20.0,127.84,127.77,7.8263]
[1725639619481,7.8222,127.85,127.78,19.5637]
[1725639619670,27.8224,127.84,127.79,7.8251]
[1725639619875,20.0,127.84,127.78,19.5637]
[1725639620057,7.8212,127.86,127.8,7.8246]
[1725639620058,20.0,127.85,127.8,7.8246]
[1725639620259,20.0,127.85,127.81,7.8238]
[1725639620478,27.8212,127.86,127.81,7.8238]
[1725639620776,7.8193,127.89,127.84,7.8222]
[1725639620975,7.8181,127.91,127.86,7.821]
[1725639621184,19.5413,127.94,127.84,19.5547]
[1725639621381,7.8187,127.9,127.85,7.8211]
[1725639621589,7.8187,127.9,127.85,9.20747589]
[1725639621758,19.5413,127.94,127.87,7.8202]
[1725639621957,19.5413,127.94,127.83,19.5562]
[1725639621958,7.8192,127.89,127.83,19.5562]
[1725639622281,19.5413,127.94,127.85,19.5534]
[1725639622585,45.7099,127.97,127.88,7.8197]
[1725639622586,7.8168,127.93,127.88,7.8197]
[1725639622889,7.8168,127.93,127.87,19.5505]
[1725639622890,7.8167,127.93,127.87,27.3707]
[1725639623174,7.8167,127.93,127.88,7.8196]
[1725639623382,39.0637,128.0,127.89,20.93218132]
[1725639623564,21.48400504,128.01,127.91,7.8179]
[1725639623763,7.815,127.96,127.9,7.8185]
[1725639623972,19.5303,128.01,127.9,1.38420392]
[1725639624177,19.5303,128.01,127.9,46.38420392]
[1725639624372,7.8144,127.97,127.91,9.2014413]
[1725639624679,1.95362584,128.0,127.9,7.8184]
[1725639624890,7.8168,127.93,127.88,7.8198]
[1725639625060,19.5341,127.99,127.89,7.8191]
[1725639625257,7.8161,127.95,127.89,7.8191]
[1725639625461,7.8161,127.94,127.89,7.8191]
[1725639625786,2.83471171,128.04,127.86,19.5523]
[1725639625787,20.0,127.93,127.9,46.38442348]
[1725639625988,41.88531171,128.04,127.9,64.5455]
[1725639625989,1.9538618,128.01,127.9,64.5455]
[1725639626162,7.8132,127.99,127.94,7.816]
[1725639626361,7.8132,127.99,127.95,1.38301519]
[1725639626563,19.5286,128.02,127.93,19.5418]
[1725639627089,7.8142,127.98,127.93,19.5418]
[1725639627384,7.8149,127.96,127.91,15.1831]
[1725639627714,7.8149,127.96,127.91,23.0009]
[1725639627885,41.01652188,128.0,127.87,27.3707]
[1725639628061,7.8181,127.91,127.86,23.66]
[1725639628386,19.5384,127.96,127.87,9.20541747]
[1725639628563,20.0,127.95,127.87,7.8202]
[1725639628767,7.818,127.91,127.86,44.59634386]
[1725639628966,7.8191,127.9,127.86,15.8391]
[1725639629169,20.0,127.95,127.86,15.8391]
[1725639629170,7.818,127.91,127.86,15.8391]
[1725639629489,20.0,127.9,127.86,15.8391]
[1725639629663,20.0,127.9,127.81,15.629]
[1725639629862,7.8219,127.85,127.81,15.629]
[1725639630068,39.5475,127.9,127.81,17.01647047]
[1725639630267,39.5475,127.9,127.82,7.8234]
[1725639630571,39.5475,127.9,127.83,19.5562]
[1725639630572,20.0,127.9,127.83,19.5562]
[1725639630888,20.0,127.9,127.83,20.94238422]
[1725639631065,27.8188,127.9,127.85,7.8214]
[1725639631262,27.8188,127.9,127.86,7.821]
[1725639631472,7.8193,127.89,127.84,7.8218]
[1725639631677,7.8174,127.92,127.87,7.8198]
[1725639632072,20.0,127.91,127.87,7.8198]
[1725639632789,20.0,127.91,127.82,53.10226741]
[1725639633098,20.0,127.91,127.81,15.629]
[1725639633099,19.5431,127.93,127.84,19.5549]
[1725639633301,1.95478394,127.99,127.84,19.5549]
[1725639633302,42.00875719,128.0,127.85,46.38499826]
[1725639633493,41.01674012,128.0,127.85,46.38499826]
[1725639633695,7.8163,127.94,127.89,7.8191]
[1725639633878,19.5337,127.99,127.9,19.5458]
[1725639634077,19.5337,127.99,127.91,7.8177]
[1725639634286,7.8151,127.96,127.91,7.8177]
[1725639634603,19.5337,127.99,127.91,7.8177]
[1725639634798,7.8153,127.96,127.91,7.8177]
[1725639635106,7.8153,127.96,127.91,23.1012]
[1725639635275,7.8155,127.95,127.91,15.2835]
[1725639635597,39.0626,128.0,127.91,15.2835]
[1725639635598,7.8168,127.93,127.91,15.2835]
[1725639635773,19.5362,127.97,127.86,21.6841]
[1725639635774,41.02827531,127.97,127.86,21.6841]
[1725639635975,7.8188,127.9,127.86,21.6841]
[1725639636186,19.5395,127.95,127.86,21.6841]
[1725639636187,7.82,127.88,127.86,21.6841]
[1725639636385,7.8193,127.89,127.86,21.6841]
[1725639636576,19.5382,127.96,127.86,41.2363]